{"text_format":"3","workbook":"xlsx","n_sheets":2,"sheets":["Suivi de projet","Installation"],"not_rendered":{"defined_names":6},"read":"whole","date_system":"1900"}

{"sheet":"Suivi de projet","index":0,"n_rows":13,"n_cols":15,"rows_kept":13}
[null,"Suivi de projet"]
[null,null,"Pourcentage d’excédent / de déficit à signaler : ",{"v":0.25,"d":"25%"}]
[]
[null,"Projet","Catégorie","Affecté à","Estimé\nDébut","Estimé \nFin","Travail estimé (en heures)","Durée estimée (en jours)","Réel \nDébut","Réel\nFin","Icône indicateur pour le travail réel excédentaire/déficitaire (en heures)","Travail réel (en heures)","Icône indicateur pour la durée réelle excédentaire/déficitaire (en jour)","Durée réelle (en jours)","Notes"]
[null,"Projet 1","Catégorie 1","Employé 1",{"$f":"TODAY()-65","v":"2017-08-08"},{"$f":"TODAY()-5","v":"2017-10-07"},210,{"$f":"IF(COUNTA('Suivi de projet'!$E5,'Suivi de projet'!$F5)<>2,\"\",DAYS360('Suivi de projet'!$E5,'Suivi de projet'!$F5,FALSE))","v":59},{"$f":"TODAY()-65","v":"2017-08-08"},{"$f":"TODAY()","v":"2017-10-12"},{"$f":"IFERROR(IF(SuiviProjet[Travail réel (en heures)]=0,\"\",IF(ABS((SuiviProjet[[#This Row],[Travail réel (en heures)]]-SuiviProjet[[#This Row],[Travail estimé (en heures)]])/SuiviProjet[[#This Row],[Travail estimé (en heures)]])>IndicateurPourcent,1,0)),\"\")","v":1},300,{"$f":"IFERROR(IF(SuiviProjet[Durée réelle (en jours)]=0,\"\",IF(ABS((SuiviProjet[[#This Row],[Durée réelle (en jours)]]-SuiviProjet[[#This Row],[Durée estimée (en jours)]])/SuiviProjet[[#This Row],[Durée estimée (en jours)]])>IndicateurPourcent,1,0)),\"\")","v":0},{"$f":"IF(COUNTA('Suivi de projet'!$I5,'Suivi de projet'!$J5)<>2,\"\",DAYS360('Suivi de projet'!$I5,'Suivi de projet'!$J5,FALSE))","v":64}]
[null,"Projet 2","Catégorie 2","Employé 4",{"$f":"TODAY()-41","v":"2017-09-01"},{"$f":"TODAY()-10","v":"2017-10-02"},400,{"$f":"IF(COUNTA('Suivi de projet'!$E6,'Suivi de projet'!$F6)<>2,\"\",DAYS360('Suivi de projet'!$E6,'Suivi de projet'!$F6,FALSE))","v":31},{"$f":"TODAY()-41","v":"2017-09-01"},{"$f":"TODAY()-7","v":"2017-10-05"},{"$f":"IFERROR(IF(SuiviProjet[Travail réel (en heures)]=0,\"\",IF(ABS((SuiviProjet[[#This Row],[Travail réel (en heures)]]-SuiviProjet[[#This Row],[Travail estimé (en heures)]])/SuiviProjet[[#This Row],[Travail estimé (en heures)]])>IndicateurPourcent,1,0)),\"\")","v":0},390,{"$f":"IFERROR(IF(SuiviProjet[Durée réelle (en jours)]=0,\"\",IF(ABS((SuiviProjet[[#This Row],[Durée réelle (en jours)]]-SuiviProjet[[#This Row],[Durée estimée (en jours)]])/SuiviProjet[[#This Row],[Durée estimée (en jours)]])>IndicateurPourcent,1,0)),\"\")","v":0},{"$f":"IF(COUNTA('Suivi de projet'!$I6,'Suivi de projet'!$J6)<>2,\"\",DAYS360('Suivi de projet'!$I6,'Suivi de projet'!$J6,FALSE))","v":34}]
[null,"Projet 3","Catégorie 1","Employé 2",{"$f":"TODAY()-100","v":"2017-07-04"},{"$f":"TODAY()-40","v":"2017-09-02"},500,{"$f":"IF(COUNTA('Suivi de projet'!$E7,'Suivi de projet'!$F7)<>2,\"\",DAYS360('Suivi de projet'!$E7,'Suivi de projet'!$F7,FALSE))","v":58},{"$f":"TODAY()-100","v":"2017-07-04"},{"$f":"TODAY()-27","v":"2017-09-15"},{"$f":"IFERROR(IF(SuiviProjet[Travail réel (en heures)]=0,\"\",IF(ABS((SuiviProjet[[#This Row],[Travail réel (en heures)]]-SuiviProjet[[#This Row],[Travail estimé (en heures)]])/SuiviProjet[[#This Row],[Travail estimé (en heures)]])>IndicateurPourcent,1,0)),\"\")","v":0},500,{"$f":"IFERROR(IF(SuiviProjet[Durée réelle (en jours)]=0,\"\",IF(ABS((SuiviProjet[[#This Row],[Durée réelle (en jours)]]-SuiviProjet[[#This Row],[Durée estimée (en jours)]])/SuiviProjet[[#This Row],[Durée estimée (en jours)]])>IndicateurPourcent,1,0)),\"\")","v":0},{"$f":"IF(COUNTA('Suivi de projet'!$I7,'Suivi de projet'!$J7)<>2,\"\",DAYS360('Suivi de projet'!$I7,'Suivi de projet'!$J7,FALSE))","v":71}]
[null,"Projet 4","Catégorie 2","Employé 3",{"$f":"TODAY()-90","v":"2017-07-14"},{"$f":"TODAY()-80","v":"2017-07-24"},250,{"$f":"IF(COUNTA('Suivi de projet'!$E8,'Suivi de projet'!$F8)<>2,\"\",DAYS360('Suivi de projet'!$E8,'Suivi de projet'!$F8,FALSE))","v":10},{"$f":"TODAY()-90","v":"2017-07-14"},{"$f":"TODAY()-71","v":"2017-08-02"},{"$f":"IFERROR(IF(SuiviProjet[Travail réel (en heures)]=0,\"\",IF(ABS((SuiviProjet[[#This Row],[Travail réel (en heures)]]-SuiviProjet[[#This Row],[Travail estimé (en heures)]])/SuiviProjet[[#This Row],[Travail estimé (en heures)]])>IndicateurPourcent,1,0)),\"\")","v":0},276,{"$f":"IFERROR(IF(SuiviProjet[Durée réelle (en jours)]=0,\"\",IF(ABS((SuiviProjet[[#This Row],[Durée réelle (en jours)]]-SuiviProjet[[#This Row],[Durée estimée (en jours)]])/SuiviProjet[[#This Row],[Durée estimée (en jours)]])>IndicateurPourcent,1,0)),\"\")","v":1},{"$f":"IF(COUNTA('Suivi de projet'!$I8,'Suivi de projet'!$J8)<>2,\"\",DAYS360('Suivi de projet'!$I8,'Suivi de projet'!$J8,FALSE))","v":18}]
[null,"Projet 5","Catégorie 3","Employé 2",{"$f":"TODAY()-90","v":"2017-07-14"},{"$f":"TODAY()-50","v":"2017-08-23"},300,{"$f":"IF(COUNTA('Suivi de projet'!$E9,'Suivi de projet'!$F9)<>2,\"\",DAYS360('Suivi de projet'!$E9,'Suivi de projet'!$F9,FALSE))","v":39},{"$f":"TODAY()-90","v":"2017-07-14"},{"$f":"TODAY()-44","v":"2017-08-29"},{"$f":"IFERROR(IF(SuiviProjet[Travail réel (en heures)]=0,\"\",IF(ABS((SuiviProjet[[#This Row],[Travail réel (en heures)]]-SuiviProjet[[#This Row],[Travail estimé (en heures)]])/SuiviProjet[[#This Row],[Travail estimé (en heures)]])>IndicateurPourcent,1,0)),\"\")","v":0},310,{"$f":"IFERROR(IF(SuiviProjet[Durée réelle (en jours)]=0,\"\",IF(ABS((SuiviProjet[[#This Row],[Durée réelle (en jours)]]-SuiviProjet[[#This Row],[Durée estimée (en jours)]])/SuiviProjet[[#This Row],[Durée estimée (en jours)]])>IndicateurPourcent,1,0)),\"\")","v":0},{"$f":"IF(COUNTA('Suivi de projet'!$I9,'Suivi de projet'!$J9)<>2,\"\",DAYS360('Suivi de projet'!$I9,'Suivi de projet'!$J9,FALSE))","v":45}]
[null,"Projet 6","Catégorie 4","Employé 4",{"$f":"TODAY()-60","v":"2017-08-13"},{"$f":"TODAY()-50","v":"2017-08-23"},500,{"$f":"IF(COUNTA('Suivi de projet'!$E10,'Suivi de projet'!$F10)<>2,\"\",DAYS360('Suivi de projet'!$E10,'Suivi de projet'!$F10,FALSE))","v":10},{"$f":"TODAY()-60","v":"2017-08-13"},{"$f":"TODAY()-45","v":"2017-08-28"},{"$f":"IFERROR(IF(SuiviProjet[Travail réel (en heures)]=0,\"\",IF(ABS((SuiviProjet[[#This Row],[Travail réel (en heures)]]-SuiviProjet[[#This Row],[Travail estimé (en heures)]])/SuiviProjet[[#This Row],[Travail estimé (en heures)]])>IndicateurPourcent,1,0)),\"\")","v":0},510,{"$f":"IFERROR(IF(SuiviProjet[Durée réelle (en jours)]=0,\"\",IF(ABS((SuiviProjet[[#This Row],[Durée réelle (en jours)]]-SuiviProjet[[#This Row],[Durée estimée (en jours)]])/SuiviProjet[[#This Row],[Durée estimée (en jours)]])>IndicateurPourcent,1,0)),\"\")","v":1},{"$f":"IF(COUNTA('Suivi de projet'!$I10,'Suivi de projet'!$J10)<>2,\"\",DAYS360('Suivi de projet'!$I10,'Suivi de projet'!$J10,FALSE))","v":15}]
[null,"Projet 7","Catégorie 5","Employé 1",{"$f":"TODAY()-44","v":"2017-08-29"},{"$f":"TODAY()-20","v":"2017-09-22"},750,{"$f":"IF(COUNTA('Suivi de projet'!$E11,'Suivi de projet'!$F11)<>2,\"\",DAYS360('Suivi de projet'!$E11,'Suivi de projet'!$F11,FALSE))","v":23},{"$f":"TODAY()-44","v":"2017-08-29"},{"$f":"TODAY()-15","v":"2017-09-27"},{"$f":"IFERROR(IF(SuiviProjet[Travail réel (en heures)]=0,\"\",IF(ABS((SuiviProjet[[#This Row],[Travail réel (en heures)]]-SuiviProjet[[#This Row],[Travail estimé (en heures)]])/SuiviProjet[[#This Row],[Travail estimé (en heures)]])>IndicateurPourcent,1,0)),\"\")","v":0},790,{"$f":"IFERROR(IF(SuiviProjet[Durée réelle (en jours)]=0,\"\",IF(ABS((SuiviProjet[[#This Row],[Durée réelle (en jours)]]-SuiviProjet[[#This Row],[Durée estimée (en jours)]])/SuiviProjet[[#This Row],[Durée estimée (en jours)]])>IndicateurPourcent,1,0)),\"\")","v":0},{"$f":"IF(COUNTA('Suivi de projet'!$I11,'Suivi de projet'!$J11)<>2,\"\",DAYS360('Suivi de projet'!$I11,'Suivi de projet'!$J11,FALSE))","v":28}]
[null,"Projet 8","Catégorie 2","Employé 1",{"$f":"TODAY()-39","v":"2017-09-03"},{"$f":"TODAY()","v":"2017-10-12"},450,{"$f":"IF(COUNTA('Suivi de projet'!$E12,'Suivi de projet'!$F12)<>2,\"\",DAYS360('Suivi de projet'!$E12,'Suivi de projet'!$F12,FALSE))","v":39},{"$f":"TODAY()-45","v":"2017-08-28"},{"$f":"TODAY()-5","v":"2017-10-07"},{"$f":"IFERROR(IF(SuiviProjet[Travail réel (en heures)]=0,\"\",IF(ABS((SuiviProjet[[#This Row],[Travail réel (en heures)]]-SuiviProjet[[#This Row],[Travail estimé (en heures)]])/SuiviProjet[[#This Row],[Travail estimé (en heures)]])>IndicateurPourcent,1,0)),\"\")","v":0},430,{"$f":"IFERROR(IF(SuiviProjet[Durée réelle (en jours)]=0,\"\",IF(ABS((SuiviProjet[[#This Row],[Durée réelle (en jours)]]-SuiviProjet[[#This Row],[Durée estimée (en jours)]])/SuiviProjet[[#This Row],[Durée estimée (en jours)]])>IndicateurPourcent,1,0)),\"\")","v":0},{"$f":"IF(COUNTA('Suivi de projet'!$I12,'Suivi de projet'!$J12)<>2,\"\",DAYS360('Suivi de projet'!$I12,'Suivi de projet'!$J12,FALSE))","v":39}]
[null,"projet 9","Catégorie 4","Employé 1","2016-02-05","2016-06-09",250,{"$f":"IF(COUNTA('Suivi de projet'!$E13,'Suivi de projet'!$F13)<>2,\"\",DAYS360('Suivi de projet'!$E13,'Suivi de projet'!$F13,FALSE))","v":124},"2016-03-05","2016-05-05",{"$f":"IFERROR(IF(SuiviProjet[Travail réel (en heures)]=0,\"\",IF(ABS((SuiviProjet[[#This Row],[Travail réel (en heures)]]-SuiviProjet[[#This Row],[Travail estimé (en heures)]])/SuiviProjet[[#This Row],[Travail estimé (en heures)]])>IndicateurPourcent,1,0)),\"\")","v":0},200,{"$f":"IFERROR(IF(SuiviProjet[Durée réelle (en jours)]=0,\"\",IF(ABS((SuiviProjet[[#This Row],[Durée réelle (en jours)]]-SuiviProjet[[#This Row],[Durée estimée (en jours)]])/SuiviProjet[[#This Row],[Durée estimée (en jours)]])>IndicateurPourcent,1,0)),\"\")","v":1},{"$f":"IF(COUNTA('Suivi de projet'!$I13,'Suivi de projet'!$J13)<>2,\"\",DAYS360('Suivi de projet'!$I13,'Suivi de projet'!$J13,FALSE))","v":60}]

{"sheet":"Installation","index":1,"n_rows":10,"n_cols":3,"rows_kept":10}
[null,"Installation"]
[]
[]
[null,"Nom de la catégorie","Nom de l’employé"]
[null,"Catégorie 1","Employé 1"]
[null,"Catégorie 2","Employé 2"]
[null,"Catégorie 3","Employé 3"]
[null,"Catégorie 4","Employé 4"]
[null,"Catégorie 5","Employé 5"]
[null,"Catégorie 6","Employé 6"]